[Event "Polofinale MCR junioru 2023"]
[Site "Czech Republic"]
[Date "2023.11.12"]
[Round "2.8"]
[White "Zezula, Jakub"]
[Black "Skypala, Ondrej"]
[Result "1/2-1/2"]
[TimeControl "90 min per 40 moves + 15 min + 30 sec / move from move 1"]
[WhiteFideId "23723203"]
[BlackFideId "366285"]
[WhiteElo "2002"]
[BlackElo "2159"]

1. e4 {[%clk 01:30:56]} {[%emt 00:00:03]} e6 {[%clk 01:30:06]} {[%emt
00:00:46]} 2. d4 {[%clk 01:31:19]} {[%emt 00:00:15]} d5 {[%clk 01:30:31]}
{[%emt 00:00:05]} 3. Nd2 {[%clk 01:31:39]} {[%emt 00:00:10]} c5 {[%clk
01:30:56]} {[%emt 00:00:05]} 4. exd5 {[%clk 01:31:09]} {[%emt 00:01:01]} Qxd5
{[%clk 01:31:17]} {[%emt 00:00:08]} 5. Ngf3 {[%clk 01:31:29]} {[%emt 00:00:10]}
cxd4 {[%clk 01:31:41]} {[%emt 00:00:07]} 6. Bc4 {[%clk 01:31:52]} {[%emt
00:00:06]} Qd6 {[%clk 01:32:05]} {[%emt 00:00:06]} 7. O-O {[%clk 01:30:59]}
{[%emt 00:01:24]} a6 {[%clk 01:26:41]} {[%emt 00:05:53]} 8. a4 {[%clk
01:25:44]} {[%emt 00:05:46]} Nc6 {[%clk 01:25:48]} {[%emt 00:01:23]} 9. Nb3
{[%clk 01:24:22]} {[%emt 00:01:52]} Nf6 {[%clk 01:24:24]} {[%emt 00:01:53]} 10.
Nbxd4 {[%clk 01:20:31]} {[%emt 00:04:22]} Nxd4 {[%clk 01:24:44]} {[%emt
00:00:09]} 11. Qxd4 {[%clk 01:10:28]} {[%emt 00:10:32]} Qxd4 {[%clk 01:24:56]}
{[%emt 00:00:19]} 12. Nxd4 {[%clk 01:10:53]} {[%emt 00:00:05]} Bc5 {[%clk
01:25:05]} {[%emt 00:00:20]} 13. Nb3 {[%clk 01:07:24]} {[%emt 00:04:00]} Be7
{[%clk 01:24:36]} {[%emt 00:01:00]} 14. Be3 {[%clk 01:04:39]} {[%emt 00:03:15]}
O-O {[%clk 01:24:52]} {[%emt 00:00:13]} 15. a5 {[%clk 01:02:54]} {[%emt
00:02:16]} Bd7 {[%clk 01:23:48]} {[%emt 00:01:33]} 16. Rad1 {[%clk 00:54:08]}
{[%emt 00:09:16]} Rac8 {[%clk 01:23:40]} {[%emt 00:00:38]} 17. Bd3 {[%clk
00:53:23]} {[%emt 00:01:15]} Ba4 {[%clk 01:19:24]} {[%emt 00:04:47]} 18. Ra1
{[%clk 00:46:21]} {[%emt 00:07:32]} Bc6 {[%clk 01:15:39]} {[%emt 00:04:15]} 19.
f3 {[%clk 00:41:57]} {[%emt 00:04:54]} Nd5 {[%clk 01:15:43]} {[%emt 00:00:25]}
20. Bc5 {[%clk 00:32:32]} {[%emt 00:09:55]} Bxc5+ {[%clk 01:13:21]} {[%emt
00:02:52]} 21. Nxc5 {[%clk 00:32:56]} {[%emt 00:00:07]} Nf4 {[%clk 01:12:54]}
{[%emt 00:00:57]} 22. b4 {[%clk 00:30:58]} {[%emt 00:02:28]} Nxd3 {[%clk
01:01:52]} {[%emt 00:11:32]} 23. cxd3 {[%clk 00:21:28]} {[%emt 00:10:00]} Rfd8
{[%clk 01:01:52]} {[%emt 00:00:29]} 24. Rfd1 {[%clk 00:21:44]} {[%emt
00:00:14]} Rd4 {[%clk 01:02:06]} {[%emt 00:00:16]} 25. Rab1 {[%clk 00:21:07]}
{[%emt 00:01:08]} g5 {[%clk 00:59:01]} {[%emt 00:03:35]} 26. h3 {[%clk
00:18:42]} {[%emt 00:02:54]} Kg7 {[%clk 00:53:30]} {[%emt 00:06:00]} 27. Kf2
{[%clk 00:18:40]} {[%emt 00:00:33]} h5 {[%clk 00:53:15]} {[%emt 00:00:46]} 28.
Re1 {[%clk 00:17:23]} {[%emt 00:01:46]} Rcd8 {[%clk 00:48:36]} {[%emt
00:05:09]} 29. Ke3 {[%clk 00:15:46]} {[%emt 00:02:07]} g4 {[%clk 00:48:36]}
{[%emt 00:00:30]} 30. hxg4 {[%clk 00:15:50]} {[%emt 00:00:27]} hxg4 {[%clk
00:48:47]} {[%emt 00:00:19]} 31. Rh1 {[%clk 00:14:06]} {[%emt 00:02:13]} R4d5
{[%clk 00:35:28]} {[%emt 00:13:49]} 32. Rh4 {[%clk 00:12:38]} {[%emt 00:01:58]}
Rg5 {[%clk 00:21:07]} {[%emt 00:14:51]} 33. Rbh1 {[%clk 00:08:30]} {[%emt
00:04:38]} gxf3 {[%clk 00:16:55]} {[%emt 00:04:42]} 34. gxf3 {[%clk 00:08:45]}
{[%emt 00:00:15]} Rg3 {[%clk 00:14:33]} {[%emt 00:02:53]} 35. R4h3 {[%clk
00:07:14]} {[%emt 00:02:00]} Rg6 {[%clk 00:12:35]} {[%emt 00:02:27]} 36. Rh7+
{[%clk 00:06:55]} {[%emt 00:00:50]} Kf6 {[%clk 00:12:58]} {[%emt 00:00:07]} 37.
d4 {[%clk 00:03:16]} {[%emt 00:04:10]} Rdg8 {[%clk 00:12:09]} {[%emt 00:01:19]}
38. Nd3 {[%clk 00:03:03]} {[%emt 00:00:43]} R6g7 {[%clk 00:11:08]} {[%emt
00:01:30]} 39. Ne5 {[%clk 00:02:49]} {[%emt 00:00:44]} Bd5 {[%clk 00:11:18]}
{[%emt 00:00:20]} 40. R7h6+ {[%clk 00:02:01]} {[%emt 00:01:19]} Ke7 {[%clk
00:10:53]} {[%emt 00:00:54]} 41. Rc1 {[%clk 00:02:17]} {[%emt 00:00:14]} Kd6
{[%clk 00:08:39]} {[%emt 00:02:43]} 42. Rc5 {[%clk 00:01:02]} {[%emt 00:01:46]}
Rf8 {[%clk 00:07:10]} {[%emt 00:01:59]} 43. Rf6 {[%clk 00:14:10]} {[%emt
00:02:51]} Bc6 {[%clk 00:21:19]} {[%emt 00:01:52]} 44. Rh6 {[%clk 00:10:25]}
{[%emt 00:04:15]} f6 {[%clk 00:16:57]} {[%emt 00:04:53]} 45. Nxc6 {[%clk
00:10:41]} {[%emt 00:00:14]} bxc6 {[%clk 00:17:19]} {[%emt 00:00:07]} 46. Rh2
{[%clk 00:10:54]} {[%emt 00:00:17]} Rg5 {[%clk 00:11:41]} {[%emt 00:06:08]} 47.
Rc4 {[%clk 00:08:38]} {[%emt 00:02:46]} e5 {[%clk 00:09:50]} {[%emt 00:02:21]}
48. Rhc2 {[%clk 00:08:21]} {[%emt 00:00:47]} Rc8 {[%clk 00:09:46]} {[%emt
00:00:35]} 49. dxe5+ {[%clk 00:07:19]} {[%emt 00:01:32]} fxe5 {[%clk 00:09:20]}
{[%emt 00:00:55]} 50. f4 {[%clk 00:06:55]} {[%emt 00:00:54]} exf4+ {[%clk
00:07:33]} {[%emt 00:02:18]} 51. Rxf4 {[%clk 00:06:54]} {[%emt 00:00:30]} Re8+
{[%clk 00:07:56]} {[%emt 00:00:07]} 52. Kd3 {[%clk 00:05:57]} {[%emt 00:01:27]}
Rd5+ {[%clk 00:07:31]} {[%emt 00:00:56]} 53. Kc4 {[%clk 00:05:13]} {[%emt
00:01:13]} Re6 {[%clk 00:07:53]} {[%emt 00:00:08]} 54. Rd4 {[%clk 00:04:00]}
{[%emt 00:01:43]} Rh6 {[%clk 00:06:45]} {[%emt 00:01:38]} 55. Rcd2 {[%clk
00:04:00]} {[%emt 00:00:30]} Rhh5 {[%clk 00:07:03]} {[%emt 00:00:12]} 56. Rg2
{[%clk 00:04:05]} {[%emt 00:00:25]} Rxd4+ {[%clk 00:02:51]} {[%emt 00:04:42]}
1/2-1/2

[Event "Polofinale MCR junioru 2023"]
[Site "Czech Republic"]
[Date "2023.11.12"]
[Round "2.9"]
[White "Hlavina, Matous"]
[Black "Pavlis, Matej"]
[Result "1/2-1/2"]
[TimeControl "90 min per 40 moves + 15 min + 30 sec / move from move 1"]
[WhiteFideId "386650"]
[BlackFideId "23735767"]
[WhiteElo "2134"]
[BlackElo "1974"]

1. e4 {[%clk 01:30:49]} {[%emt 00:00:03]} c5 {[%clk 01:30:56]} {[%emt
00:00:04]} 2. Nf3 {[%clk 01:31:16]} {[%emt 00:00:03]} d6 {[%clk 01:31:18]}
{[%emt 00:00:08]} 3. d4 {[%clk 01:31:20]} {[%emt 00:00:26]} cxd4 {[%clk
01:31:43]} {[%emt 00:00:04]} 4. Nxd4 {[%clk 01:31:46]} {[%emt 00:00:05]} Nf6
{[%clk 01:32:07]} {[%emt 00:00:06]} 5. Nc3 {[%clk 01:32:11]} {[%emt 00:00:04]}
a6 {[%clk 01:32:35]} {[%emt 00:00:04]} 6. Be3 {[%clk 01:31:53]} {[%emt
00:00:47]} e5 {[%clk 01:32:43]} {[%emt 00:00:22]} 7. Nb3 {[%clk 01:31:37]}
{[%emt 00:00:46]} Be7 {[%clk 01:33:08]} {[%emt 00:00:05]} 8. f3 {[%clk
01:31:56]} {[%emt 00:00:10]} Be6 {[%clk 01:33:32]} {[%emt 00:00:06]} 9. Qd2
{[%clk 01:32:19]} {[%emt 00:00:07]} h5 {[%clk 01:33:57]} {[%emt 00:00:05]} 10.
Nd5 {[%clk 01:32:13]} {[%emt 00:00:37]} Nxd5 {[%clk 01:32:27]} {[%emt
00:02:00]} 11. exd5 {[%clk 01:32:26]} {[%emt 00:00:16]} Bf5 {[%clk 01:32:54]}
{[%emt 00:00:03]} 12. c4 {[%clk 01:31:30]} {[%emt 00:01:26]} Nd7 {[%clk
01:32:03]} {[%emt 00:01:21]} 13. Be2 {[%clk 01:31:17]} {[%emt 00:00:44]} h4
{[%clk 01:29:03]} {[%emt 00:03:30]} 14. Rc1 {[%clk 01:27:17]} {[%emt 00:04:29]}
b6 {[%clk 01:16:11]} {[%emt 00:13:22]} 15. O-O {[%clk 01:25:13]} {[%emt
00:02:34]} O-O {[%clk 01:15:48]} {[%emt 00:00:53]} 16. Na1 {[%clk 01:17:06]}
{[%emt 00:08:38]} h3 {[%clk 01:08:08]} {[%emt 00:08:09]} 17. g3 {[%clk
01:15:10]} {[%emt 00:02:26]} Bh7 {[%clk 00:53:11]} {[%emt 00:15:28]} 18. Nc2
{[%clk 01:14:05]} {[%emt 00:01:34]} a5 {[%clk 00:49:16]} {[%emt 00:04:26]} 19.
Bd3 {[%clk 01:04:44]} {[%emt 00:09:50]} f5 {[%clk 00:40:09]} {[%emt 00:09:37]}
20. Rce1 {[%clk 01:01:14]} {[%emt 00:04:00]} Nc5 {[%clk 00:32:34]} {[%emt
00:08:05]} 21. Bxc5 {[%clk 00:54:22]} {[%emt 00:07:22]} bxc5 {[%clk 00:32:56]}
{[%emt 00:00:08]} 22. Ne3 {[%clk 00:52:11]} {[%emt 00:02:42]} Qd7 {[%clk
00:30:17]} {[%emt 00:03:07]} 23. Qc2 {[%clk 00:48:50]} {[%emt 00:03:52]} Rf7
{[%clk 00:21:28]} {[%emt 00:09:19]} 24. Kh1 {[%clk 00:47:12]} {[%emt 00:02:08]}
Raf8 {[%clk 00:18:22]} {[%emt 00:03:36]} 25. Rg1 {[%clk 00:40:20]} {[%emt
00:07:22]} Kh8 {[%clk 00:17:58]} {[%emt 00:00:55]} 26. Rgf1 {[%clk 00:35:33]}
{[%emt 00:05:17]} Bd8 {[%clk 00:16:57]} {[%emt 00:01:31]} 27. f4 {[%clk
00:30:29]} {[%emt 00:05:34]} e4 {[%clk 00:12:37]} {[%emt 00:04:49]} 28. Be2
{[%clk 00:30:48]} {[%emt 00:00:12]} Bf6 {[%clk 00:12:43]} {[%emt 00:00:23]} 29.
Nd1 {[%clk 00:28:46]} {[%emt 00:02:32]} g5 {[%clk 00:09:34]} {[%emt 00:03:38]}
30. Nf2 {[%clk 00:24:54]} {[%emt 00:04:22]} g4 {[%clk 00:09:59]} {[%emt
00:00:07]} 31. Nd1 {[%clk 00:24:59]} {[%emt 00:00:25]} Rb8 {[%clk 00:10:00]}
{[%emt 00:00:28]} 32. Nc3 {[%clk 00:24:42]} {[%emt 00:00:46]} Qd8 {[%clk
00:09:06]} {[%emt 00:01:25]} 33. Nb5 {[%clk 00:24:10]} {[%emt 00:01:02]} Rfb7
{[%clk 00:09:14]} {[%emt 00:00:22]} 34. Bd1 {[%clk 00:23:05]} {[%emt 00:01:36]}
Bg6 {[%clk 00:09:28]} {[%emt 00:00:16]} 35. Be2 {[%clk 00:19:50]} {[%emt
00:03:45]} Be8 {[%clk 00:09:22]} {[%emt 00:00:35]} 36. a4 {[%clk 00:20:05]}
{[%emt 00:00:16]} Ra8 {[%clk 00:08:02]} {[%emt 00:01:50]} 37. Ra1 {[%clk
00:18:41]} {[%emt 00:01:53]} Qe7 {[%clk 00:08:04]} {[%emt 00:00:27]} 38. Ra3
{[%clk 00:17:59]} {[%emt 00:01:12]} Ra6 {[%clk 00:06:43]} {[%emt 00:01:51]} 39.
Rb3 {[%clk 00:18:06]} {[%emt 00:00:23]} Qg7 {[%clk 00:06:18]} {[%emt 00:00:54]}
40. Re1 {[%clk 00:16:13]} {[%emt 00:02:25]} Rab6 {[%clk 00:04:40]} {[%emt
00:02:08]} 41. Ra1 {[%clk 00:14:42]} {[%emt 00:02:00]} 1/2-1/2

[Event "Polofinale MCR junioru 2023"]
[Site "Czech Republic"]
[Date "2023.11.12"]
[Round "2.10"]
[White "Simunek, Jakub Simon"]
[Black "Hurtik, Matej"]
[Result "0-1"]
[TimeControl "90 min per 40 moves + 15 min + 30 sec / move from move 1"]
[WhiteFideId "23709464"]
[BlackFideId "397997"]
[WhiteElo "1970"]
[BlackElo "2131"]

1. e4 {[%clk 01:30:24]} {[%emt 00:00:34]} c5 {[%clk 01:24:51]} {[%emt
00:06:10]} 2. Nf3 {[%clk 01:30:37]} {[%emt 00:00:17]} Nc6 {[%clk 01:25:02]}
{[%emt 00:00:19]} 3. Bb5 {[%clk 01:30:59]} {[%emt 00:00:08]} Nf6 {[%clk
01:22:02]} {[%emt 00:03:30]} 4. e5 {[%clk 01:28:51]} {[%emt 00:02:39]} Nd5
{[%clk 01:20:12]} {[%emt 00:02:18]} 5. O-O {[%clk 01:28:39]} {[%emt 00:00:42]}
e6 {[%clk 01:17:44]} {[%emt 00:02:59]} 6. c3 {[%clk 01:27:12]} {[%emt
00:01:57]} a6 {[%clk 01:08:15]} {[%emt 00:10:00]} 7. Ba4 {[%clk 01:26:35]}
{[%emt 00:01:06]} b5 {[%clk 01:08:12]} {[%emt 00:00:33]} 8. Bc2 {[%clk
01:27:03]} {[%emt 00:00:02]} Qc7 {[%clk 01:07:40]} {[%emt 00:01:01]} 9. d4
{[%clk 01:23:25]} {[%emt 00:04:08]} Bb7 {[%clk 01:04:02]} {[%emt 00:04:09]} 10.
Nbd2 {[%clk 01:19:28]} {[%emt 00:04:27]} cxd4 {[%clk 01:04:09]} {[%emt
00:00:23]} 11. cxd4 {[%clk 01:19:51]} {[%emt 00:00:07]} Rc8 {[%clk 01:04:35]}
{[%emt 00:00:04]} 12. Be4 {[%clk 01:09:24]} {[%emt 00:10:57]} Na5 {[%clk
00:57:28]} {[%emt 00:07:35]} 13. Nb3 {[%clk 01:00:48]} {[%emt 00:09:08]} Nc3
{[%clk 00:51:22]} {[%emt 00:06:35]} 14. bxc3 {[%clk 01:01:10]} {[%emt
00:00:09]} Bxe4 {[%clk 00:51:50]} {[%emt 00:00:02]} 15. Nxa5 {[%clk 01:01:25]}
{[%emt 00:00:15]} Qxa5 {[%clk 00:52:17]} {[%emt 00:00:02]} 16. Bd2 {[%clk
01:01:42]} {[%emt 00:00:13]} Qa3 {[%clk 00:52:04]} {[%emt 00:00:43]} 17. Ng5
{[%clk 00:56:53]} {[%emt 00:05:20]} Bd5 {[%clk 00:50:13]} {[%emt 00:02:20]} 18.
Qg4 {[%clk 00:51:03]} {[%emt 00:06:20]} Be7 {[%clk 00:36:38]} {[%emt 00:14:05]}
19. Qf4 {[%clk 00:51:21]} {[%emt 00:00:13]} O-O {[%clk 00:36:04]} {[%emt
00:01:04]} 20. Qg3 {[%clk 00:49:35]} {[%emt 00:02:16]} f6 {[%clk 00:34:33]}
{[%emt 00:02:01]} 21. Nh3 {[%clk 00:46:43]} {[%emt 00:03:21]} fxe5 {[%clk
00:31:24]} {[%emt 00:03:40]} 22. Qxe5 {[%clk 00:44:06]} {[%emt 00:03:07]} Rf6
{[%clk 00:25:39]} {[%emt 00:06:14]} 23. f3 {[%clk 00:43:12]} {[%emt 00:01:25]}
Bd6 {[%clk 00:23:30]} {[%emt 00:02:39]} 24. Qh5 {[%clk 00:41:35]} {[%emt
00:02:07]} Rcf8 {[%clk 00:20:05]} {[%emt 00:03:55]} 25. Rf2 {[%clk 00:37:43]}
{[%emt 00:04:22]} Rf5 {[%clk 00:15:03]} {[%emt 00:05:32]} 26. Qh4 {[%clk
00:36:49]} {[%emt 00:01:24]} Be7 {[%clk 00:11:37]} {[%emt 00:03:56]} 27. Qg3
{[%clk 00:35:16]} {[%emt 00:02:03]} Bd6 {[%clk 00:12:05]} {[%emt 00:00:02]} 28.
Qh4 {[%clk 00:35:39]} {[%emt 00:00:07]} R8f6 {[%clk 00:12:30]} {[%emt
00:00:06]} 29. Raf1 {[%clk 00:35:37]} {[%emt 00:00:31]} Be7 {[%clk 00:06:26]}
{[%emt 00:06:34]} 30. Bg5 {[%clk 00:32:53]} {[%emt 00:03:14]} Rf7 {[%clk
00:01:07]} {[%emt 00:05:49]} 31. g4 {[%clk 00:32:01]} {[%emt 00:01:23]} Rxg5
{[%clk 00:01:14]} {[%emt 00:00:22]} 32. Nxg5 {[%clk 00:32:24]} {[%emt
00:00:06]} h6 {[%clk 00:01:29]} {[%emt 00:00:16]} 33. f4 {[%clk 00:32:24]}
{[%emt 00:00:30]} hxg5 {[%clk 00:00:52]} {[%emt 00:01:08]} 34. fxg5 {[%clk
00:32:43]} {[%emt 00:00:10]} Rxf2 {[%clk 00:01:12]} {[%emt 00:00:09]} 35. Qxf2
{[%clk 00:32:03]} {[%emt 00:01:11]} e5 {[%clk 00:01:35]} {[%emt 00:00:07]} 36.
Qd2 {[%clk 00:31:16]} {[%emt 00:01:17]} exd4 {[%clk 00:01:10]} {[%emt
00:00:56]} 37. cxd4 {[%clk 00:31:26]} {[%emt 00:00:19]} Qh3 {[%clk 00:00:50]}
{[%emt 00:00:49]} 38. Re1 {[%clk 00:27:39]} {[%emt 00:04:17]} Qxg4+ {[%clk
00:01:08]} {[%emt 00:00:12]} 39. Kf2 {[%clk 00:28:05]} {[%emt 00:00:04]} Qf3+
{[%clk 00:01:27]} {[%emt 00:00:11]} 40. Kg1 {[%clk 00:28:27]} {[%emt 00:00:09]}
Qg4+ {[%clk 00:01:34]} {[%emt 00:00:23]} 41. Kf2 {[%clk 00:28:56]} {[%emt
00:00:01]} Qg2+ {[%clk 00:02:02]} 0-1

[Event "Polofinale MCR junioru 2023"]
[Site "Czech Republic"]
[Date "2023.11.12"]
[Round "2.11"]
[White "Vana, Jan"]
[Black "Prazak, Daniel"]
[Result "0-1"]
[TimeControl "90 min per 40 moves + 15 min + 30 sec / move from move 1"]
[WhiteFideId "23726016"]
[BlackFideId "23709456"]
[WhiteElo "1965"]
[BlackElo "2103"]

1. e4 {[%clk 01:30:56]} {[%emt 00:00:04]} e6 {[%clk 01:25:08]} {[%emt
00:05:48]} 2. d4 {[%clk 01:30:36]} {[%emt 00:00:54]} d5 {[%clk 01:24:57]}
{[%emt 00:00:42]} 3. Nd2 {[%clk 01:31:00]} {[%emt 00:00:05]} c5 {[%clk
01:21:31]} {[%emt 00:03:56]} 4. Ngf3 {[%clk 01:30:36]} {[%emt 00:00:54]} Nf6
{[%clk 01:18:41]} {[%emt 00:03:20]} 5. exd5 {[%clk 01:26:24]} {[%emt 00:04:43]}
Nxd5 {[%clk 01:17:37]} {[%emt 00:01:34]} 6. Ne4 {[%clk 01:22:19]} {[%emt
00:04:34]} Nd7 {[%clk 01:11:05]} {[%emt 00:07:02]} 7. c4 {[%clk 01:10:02]}
{[%emt 00:12:47]} N5f6 {[%clk 01:11:02]} {[%emt 00:00:33]} 8. Bg5 {[%clk
00:59:47]} {[%emt 00:10:43]} Be7 {[%clk 01:08:33]} {[%emt 00:03:02]} 9. Bxf6
{[%clk 00:48:41]} {[%emt 00:11:35]} Nxf6 {[%clk 01:07:55]} {[%emt 00:01:09]} 10.
Nxc5 {[%clk 00:47:37]} {[%emt 00:01:34]} Bxc5 {[%clk 01:06:51]} {[%emt
00:01:34]} 11. dxc5 {[%clk 00:48:04]} {[%emt 00:00:03]} Qa5+ {[%clk 01:07:09]}
{[%emt 00:00:12]} 12. Qd2 {[%clk 00:43:00]} {[%emt 00:05:33]} Qxc5 {[%clk
01:07:31]} {[%emt 00:00:09]} 13. b4 {[%clk 00:39:31]} {[%emt 00:03:58]} Qc7
{[%clk 01:06:31]} {[%emt 00:01:30]} 14. Rd1 {[%clk 00:32:19]} {[%emt 00:07:42]}
b6 {[%clk 01:02:44]} {[%emt 00:04:18]} 15. Qd6 {[%clk 00:23:05]} {[%emt
00:09:44]} Qxd6 {[%clk 01:02:04]} {[%emt 00:01:09]} 16. Rxd6 {[%clk 00:23:32]}
{[%emt 00:00:03]} Bb7 {[%clk 01:00:38]} {[%emt 00:01:56]} 17. c5 {[%clk
00:18:12]} {[%emt 00:05:50]} Ke7 {[%clk 00:51:34]} {[%emt 00:09:35]} 18. Rd1
{[%clk 00:09:29]} {[%emt 00:09:12]} bxc5 {[%clk 00:49:30]} {[%emt 00:02:35]} 19.
bxc5 {[%clk 00:09:58]} {[%emt 00:00:01]} Rhc8 {[%clk 00:49:02]} {[%emt
00:00:57]} 20. Rc1 {[%clk 00:06:11]} {[%emt 00:04:17]} Ne4 {[%clk 00:46:45]}
{[%emt 00:02:48]} 21. Bd3 {[%clk 00:02:25]} {[%emt 00:04:16]} Nxc5 {[%clk
00:46:40]} {[%emt 00:00:34]} 22. Ke2 {[%clk 00:01:54]} {[%emt 00:01:01]} Bd5
{[%clk 00:42:37]} {[%emt 00:04:33]} 23. a3 {[%clk 00:01:05]} {[%emt 00:01:20]}
Rab8 {[%clk 00:41:51]} {[%emt 00:01:16]} 24. Rb1 {[%clk 00:00:54]} {[%emt
00:00:40]} g6 {[%clk 00:34:34]} {[%emt 00:07:47]} 25. Rxb8 {[%clk 00:00:33]}
{[%emt 00:00:51]} Rxb8 {[%clk 00:34:55]} {[%emt 00:00:10]} 26. Rc1 {[%clk
00:00:48]} {[%emt 00:00:15]} Bxf3+ {[%clk 00:34:32]} {[%emt 00:00:53]} 27. gxf3
{[%clk 00:01:07]} {[%emt 00:00:10]} Nxd3 {[%clk 00:34:45]} {[%emt 00:00:19]} 28.
Kxd3 {[%clk 00:01:15]} {[%emt 00:00:20]} Rb3+ {[%clk 00:35:10]} {[%emt
00:00:05]} 29. Ke4 {[%clk 00:01:10]} {[%emt 00:00:35]} Rxa3 {[%clk 00:35:36]}
{[%emt 00:00:05]} 30. f4 {[%clk 00:00:52]} {[%emt 00:00:47]} Kf6 {[%clk
00:35:56]} {[%emt 00:00:11]} 31. Rc7 {[%clk 00:00:47]} {[%emt 00:00:34]} Rh3
{[%clk 00:36:11]} {[%emt 00:00:15]} 32. Rxa7 {[%clk 00:00:51]} {[%emt
00:00:26]} Rxh2 {[%clk 00:36:35]} {[%emt 00:00:06]} 33. Ke3 {[%clk 00:01:13]}
{[%emt 00:00:08]} Rh3+ {[%clk 00:36:57]} {[%emt 00:00:08]} 34. f3 {[%clk
00:01:33]} {[%emt 00:00:11]} Rh2 {[%clk 00:37:22]} {[%emt 00:00:04]} 35. Rb7
{[%clk 00:01:56]} {[%emt 00:00:08]} Ra2 {[%clk 00:37:38]} {[%emt 00:00:14]} 36.
Rc7 {[%clk 00:02:10]} {[%emt 00:00:16]} Ra5 {[%clk 00:37:28]} {[%emt 00:00:40]}
37. Rc8 {[%clk 00:02:29]} {[%emt 00:00:12]} e5 {[%clk 00:37:43]} {[%emt
00:00:15]} 38. fxe5+ {[%clk 00:02:28]} {[%emt 00:00:30]} Rxe5+ {[%clk
00:38:07]} {[%emt 00:00:06]} 39. Kf4 {[%clk 00:02:52]} {[%emt 00:00:06]} Rf5+
{[%clk 00:38:29]} {[%emt 00:00:09]} 40. Kg3 {[%clk 00:03:13]} {[%emt 00:00:09]}
Kg5 {[%clk 00:38:39]} {[%emt 00:00:19]} 41. Rc4 {[%clk 00:03:11]} {[%emt
00:00:33]} h5 {[%clk 00:38:50]} {[%emt 00:00:19]} 42. f4+ {[%clk 00:03:34]}
{[%emt 00:00:07]} Kf6 {[%clk 00:39:12]} {[%emt 00:00:08]} 43. Rc6+ {[%clk
00:03:59]} {[%emt 00:00:05]} Kg7 {[%clk 00:39:33]} {[%emt 00:00:08]} 44. Rc7
{[%clk 00:04:18]} {[%emt 00:00:11]} Ra5 {[%clk 00:39:48]} {[%emt 00:00:15]} 45.
Kh4 {[%clk 00:04:11]} {[%emt 00:00:37]} Ra3 {[%clk 00:39:43]} {[%emt 00:00:35]}
46. Rb7 {[%clk 00:03:39]} {[%emt 00:01:02]} Rf3 {[%clk 00:40:06]} {[%emt
00:00:07]} 47. Rb4 {[%clk 00:04:03]} {[%emt 00:00:06]} Kh6 {[%clk 00:40:23]}
{[%emt 00:00:12]} 0-1